Cogmind - Beta 16.1 @@@ ROGUE MODE // 2026.03.06 @ 13:29:18 Player: FL-IST Result: Destroyed self with Improved Grenade Launcher Performance ------------- Evolutions (0) 0 Regions Visited (4) 800 Robots Destroyed (45) 225 Value Destroyed (789) 789 Prototype IDs (23) 460 Alien Tech Used (0) 0 Bonus (394) 394 TOTAL SCORE: 2668 Bonus ------- Follower Combat Kills 94 Aligned with FarCom 300 Cogmind --------- Core Integrity 0/250 Matter 249/300 Energy 113/125 System Corruption 0% Temperature Cool (92) Movement Rolling (155) Ox5 Location -9/Mines Parts ------- > --- POWER (1) -------- Light Ion Engine > --- PROPULSION (2) --- Armored Treads Wheel > --- UTILITY (2) ------ High-capacity Storage Unit Seismic Detector > --- WEAPON (2) ------- Beam Cannon Improved Grenade Launcher > --- INVENTORY (20) --- Light Nuclear Core Light Treads Light Treads Light Treads Cooling System High-capacity Storage Unit Seismic Detector Light Armor Plating Light Armor Plating Light Armor Plating Light Armor Plating Light Armor Plating Hacking Suite Tractor Beam Chronowheel Beam Cannon Light Assault Rifle Battle Cannon Assault Cannon Rocket Launcher Peak State ------------ > --- POWER ------------ Light Ion Engine > --- PROPULSION ------- Armored Treads Wheel > --- UTILITY ---------- High-capacity Storage Unit Seismic Detector > --- WEAPON ----------- Beam Cannon Improved Grenade Launcher > --- INVENTORY -------- Light Nuclear Core Light Treads Light Treads Light Treads Cooling System High-capacity Storage Unit Seismic Detector Light Armor Plating Light Armor Plating Light Armor Plating Light Armor Plating Light Armor Plating Hacking Suite Tractor Beam Chronowheel Beam Cannon Light Assault Rifle Battle Cannon Assault Cannon Rocket Launcher [Rating: 15] Favorites ----------- Power Light Ion Engine Engine Light Ion Engine Power Core Light Nuclear Core Propulsion Wheel Treads Light Treads Wheel Wheel Utility High-capacity Storage Unit Device Seismic Detector Storage High-capacity Storage Unit Weapon Light Assault Rifle Energy Gun Medium Laser Energy Cannon Beam Cannon Ballistic Gun Light Assault Rifle Ballistic Cannon Light Cannon Launcher Grenade Launcher Build | -11 -10 -10 -10 -9 ------- Run | Yrd Mat Min Exi Min Slots Evolved . | . . . . . Power . | . . . . . Propulsion . | . . . . . Utility . | . . . . . Weapon . | . . . . . Parts Attached 23 | 7 10 4 . 2 Power 4 | 1 2 1 . . Engine 2 | 1 . 1 . . Core 2 | . 2 . . . Reactor . | . . . . . Propulsion 6 | 2 2 2 . . Treads 3 | 1 1 1 . . Leg . | . . . . . Wheel 3 | 1 1 1 . . Hover . | . . . . . Flight . | . . . . . Utility 4 | 2 1 1 . . Device 2 | 1 . 1 . . Storage 2 | 1 1 . . . Processor . | . . . . . Hackware . | . . . . . Protection . | . . . . . Artifact . | . . . . . Weapon 9 | 2 5 . . 2 Energy Gun 2 | 1 1 . . . Energy Cannon 2 | . 1 . . 1 Ballistic Gun 2 | 1 1 . . . Ballistic Cannon 1 | . 1 . . . Launcher 2 | . 1 . . 1 Special Weapon . | . . . . . Impact Weapon . | . . . . . Slashing Weapon . | . . . . . Piercing Weapon . | . . . . . Special Melee Weapon . | . . . . . Unidentified Prototypes . | . . . . . Parts Lost 6 | . 3 3 . . Power 2 | . 1 1 . . Propulsion 1 | . . 1 . . Utility 1 | . . 1 . . Weapon 2 | . 2 . . . Highest Loss Streak 3 | . 1 3 . . To Critical Strikes . | . . . . . Average Backups 16 | 3 12 18 20 20 Power . | . 1 1 1 1 Propulsion 3 | 1 3 3 3 3 Utility 7 | . 5 8 9 9 Weapon 4 | . 3 5 6 5 Tool/Special . | . . . . . Unused Backups 20 | . 1 1 . 18 Power 1 | . 1 . . . Propulsion 2 | . . . . 2 Utility 10 | . . . . 10 Weapon 6 | . . 1 . 5 Tool/Special 1 | . . . . 1 Average Slot Usage (%) 97 | . 99 93 100 100 Engine 9 | . 3 11 14 14 Core 4 | . 10 2 . . Treads 14 | . 14 14 14 14 Wheel 14 | . 14 14 14 14 Device 12 | . 14 7 14 14 Storage 14 | . 14 14 14 14 Energy Gun 3 | . 9 . . . Energy Cannon 10 | . 4 14 14 14 Ballistic Gun 11 | . 6 14 14 13 Ballistic Cannon 2 | . 6 . . . Peak Build Rating 15 | 7 11 11 13 15 Average Rating 10 | 5 9 9 11 13 On Entrance 8 | . 7 11 11 13 Avg Prop Armor Cover (%) 13 | 15 12 13 16 16 Naked Turns . | . . . . . Heaviest Build 52 | 12 52 50 48 48 Greatest Support 20 | 20 10 20 10 10 Greatest Overweight (x) 5 | 1 5 4 4 4 Average Overweight (x) 3 | . 4 3 4 4 Largest Inventory Capacity 20 | 8 20 20 20 20 Average Capacity 19 | 7 19 20 20 20 Most Carried 20 | 5 19 20 20 20 Average Carried 16 | 3 12 18 19 20 Final Capacity 20 | 8 20 20 20 20 Final Carried 20 | 5 17 20 20 20 Class Distribution -------------------- 92% | Mutant 7% | Scavenger-Mutant Dominant Class ---------------- Mutant | -10/Materials Mutant | -10/Mines Mutant | -10/Exiles Mutant | -9/Mines Resources | -11 -10 -10 -10 -9 ----------- Run | Yrd Mat Min Exi Min Matter Collected 702 | 281 335 66 . 20 Remotely . | . . . . . Salvage Created 1212 | 143 667 349 . 53 Parts 89 | 13 42 29 . 5 Haulers Intercepted 2 | . 2 . . . Recyclers Shooed 1 | 1 . . . . Parts Field Recycled . | . . . . . Retrieved Matter . | . . . . . Parts Self-Destructed . | . . . . . Prevented . | . . . . . Parts Restored . | . . . . . Kills | -11 -10 -10 -10 -9 ------- Run | Yrd Mat Min Exi Min Combat Hostiles Destroyed 31 | . 15 10 . 6 Guns 7 | . 4 3 . . Cannons 17 | . 7 7 . 3 AOE 7 | . 4 . . 3 Classes Destroyed 9 | 2 6 . . 1 Worker 1 | . 1 . . . Tunneler 5 | 4 . 1 . . Hauler 2 | . 2 . . . Recycler 3 | 1 . 2 . . Operator 3 | . 3 . . . Watcher 3 | . 3 . . . Swarmer 14 | . 3 10 . 1 Grunt 14 | . 12 1 . 1 Assembled 4 | . . . . 4 Best Kill Streak 5 | 5 5 3 . 4 Combat Bots Only 5 | . 5 3 . 4 Max Kills in Single Turn 2 | 1 2 2 . 2 Gunslinging . | . . . . . Exploded 2 | . 2 . . 2 Melee . | . . . . . Uniques/NPCs Destroyed . | . . . . . Combat | -11 -10 -10 -10 -9 -------- Run | Yrd Mat Min Exi Min Hostile Shots Fired 131 | . 61 45 . 25 Missed 33 | . 14 14 . 5 Hits 98 | . 47 31 . 20 Melee 1 | . . . . 1 Projectile 97 | . 47 31 . 19 Damage Taken 1225 | . 714 248 . 263 Core 259 | . 144 31 . 84 Absorbed by Shields . | . . . . . Core Remaining (%) 100 | 100 . . . . Volleys Fired 129 | 11 71 32 . 15 Largest 2 | 2 2 2 . 2 Hottest 96 | 70 90 80 . 96 Shots Fired 253 | 22 137 64 . 30 Gun 147 | 22 81 32 . 12 Cannon 98 | . 51 32 . 15 Launcher 8 | . 5 . . 3 Special . | . . . . . Kinetic 120 | 11 65 32 . 12 Thermal 125 | 11 67 32 . 15 Explosive 8 | . 5 . . 3 Electromagnetic . | . . . . . Robot Hit Streak 14 | 7 14 10 . 4 Robot Miss Streak 6 | 3 6 4 . 3 Penetration Max . | . . . . . Secondary Targets 1 | . 1 . . . Max Gunslinging Chain 1 | . 1 . . . Shots Hit Robots 152 | 13 85 36 . 18 Core Hits 75 | 7 39 15 . 14 Critical Kills . | . . . . . Critical Parts Destroyed . | . . . . . Critical Strikes 4 | . 4 . . . Burn 3 | . 3 . . . Blast 1 | . 1 . . . Melee Attacks . | . . . . . Impact . | . . . . . Slashing . | . . . . . Piercing . | . . . . . Sneak Attacks . | . . . . . Combat Hostiles . | . . . . . Follow-up Attacks . | . . . . . Damage Inflicted 2619 | 147 1396 548 . 528 Guns 855 | 147 526 113 . 69 Cannons 1170 | . 540 435 . 195 Explosions 594 | . 330 . . 264 Melee . | . . . . . Ramming . | . . . . . Kinetic 711 | 34 495 113 . 69 Thermal 1405 | 113 662 435 . 195 Explosive 503 | . 239 . . 264 Electromagnetic . | . . . . . Impact . | . . . . . Slashing . | . . . . . Piercing . | . . . . . Highest Corruption . | . . . . . Average Corruption . | . . . . . Corruption Purged . | . . . . . Corruption Blocked . | . . . . . Overload Shots . | . . . . . Overflow Damage 182 | . 148 34 . . Projectiles 37 | . 3 34 . . Explosions 145 | . 145 . . . Melee . | . . . . . Knockbacks 3 | . 3 . . . Impact . | . . . . . Kinetic 2 | . 2 . . . Secondary 1 | . 1 . . . Self-Inflicted Damage 203 | . 133 . . 70 Shots 6 | . 3 . . 3 Rammed . | . . . . . Targets Rammed . | . . . . . Kicked . | . . . . . Crushed . | . . . . . Highest Temperature 288 | 80 207 288 . 100 Average Temperature 66 | 32 62 90 . 48 Received Heat Transfer 303 | . 297 . . 6 Siege Activations . | . . . . . Martial Activations . | . . . . . Shielding Activations . | . . . . . Robots Disrupted . | . . . . . Combat Hostiles . | . . . . . Robots Corrupted . | . . . . . Combat Hostiles . | . . . . . Parts Fried . | . . . . . Impact Corruptions . | . . . . . Robots Melted . | . . . . . Combat Hostiles . | . . . . . Parts Melted 3 | 1 2 . . . Heat Transferred 3380 | 333 1752 888 . 407 Parts Sabotaged . | . . . . . Parts Stolen . | . . . . . Parts Stripped . | . . . . . Power Chain Reactions . | . . . . . Alert | -11 -10 -10 -10 -9 ------- Run | Yrd Mat Min Exi Min Maximum Alert Level . | . . . . . Low Security (%) 100 | 100 100 100 . 100 Level 1 . | . . . . . Level 2 . | . . . . . Level 3 . | . . . . . Level 4 . | . . . . . Level 5 . | . . . . . High Security . | . . . . . Max Security . | . . . . . Peak Influence 194 | 10 192 194 . 100 Initial 59 | . . 59 . . Average 71 | 1 103 73 . 16 Influence Increases 1169 | 25 594 356 . 194 Destroy 0b10 Robot/C 700 | . 300 260 . 140 Destroy 0b10 Robot/NC 80 | 25 40 15 . . Destroy Leader 140 | . 80 40 . 20 Allied During Kill 25 | . . 11 . 14 Successful Hack 20 | . 20 . . . Select Force Hacks 60 | . 60 . . . Disable Machine 45 | . 45 . . . Destroy Structure 69 | . 49 . . 20 Lose Combat Pursuer 30 | . . 30 . . Influence Decreases 1149 | 25 441 474 35 174 Entered New Map 129 | . . 94 35 . Time Decay 920 | 25 411 350 . 134 Lost Part 60 | . 30 30 . . Lost Ally 40 | . . . . 40 Squads Dispatched 5 | . 4 1 . . Investigation 4 | . 3 1 . . Extermination . | . . . . . Reinforcement 1 | . 1 . . . Assault . | . . . . . Garrison . | . . . . . Intercept . | . . . . . Searches Triggered . | . . . . . Construction Impeded . | . . . . . Haulers Reinforced . | . . . . . Active Scanning Responses . | . . . . . Cargo Convoy Interrupts . | . . . . . Stealth | -11 -10 -10 -10 -9 --------- Run | Yrd Mat Min Exi Min Distress Signals . | . . . . . Communications Jammed . | . . . . . Distress Signals . | . . . . . Times Spotted 53 | . 24 14 . 15 Peak Tracking Total 19 | . 3 3 . 19 Tactical Retreats 2 | . . 1 . 1 Traps | -11 -10 -10 -10 -9 ------- Run | Yrd Mat Min Exi Min Traps Triggered . | . . . . . Indirectly . | . . . . . Trap Hack Attempts . | . . . . . Triggered . | . . . . . Disarmed . | . . . . . Reprogrammed . | . . . . . Reused . | . . . . . Traps Extracted . | . . . . . Installed . | . . . . . Triggered . | . . . . . Machines | -11 -10 -10 -10 -9 ---------- Run | Yrd Mat Min Exi Min Machines Disabled 3 | . 3 . . . Max in Single Turn 3 | . 3 . . . Machines Repaired . | . . . . . Machines Dismantled . | . . . . . Machines Sabotaged . | . . . . . Overloaded Fab Kills . | . . . . . Hacking | -11 -10 -10 -10 -9 --------- Run | Yrd Mat Min Exi Min Machines Accessed 12 | . 9 1 2 . Terminals 7 | . 7 . . . Fabricators . | . . . . . Repair Stations . | . . . . . Recycling Units 2 | . 2 . . . Scanalyzers . | . . . . . Garrison Access . | . . . . . Total Hacks 34 | . 31 1 2 . Successful 22 | . 19 1 2 . Failed 12 | . 12 . . . Catastrophic 1 | . 1 . . . Database Lockouts . | . . . . . Manual 26 | . 25 . 1 . Terminals 25 | . 25 . . . Fabricators . | . . . . . Repair Stations . | . . . . . Recycling Units 6 | . 6 . . . Scanalyzers . | . . . . . Garrison Access . | . . . . . Terminal Hacks 5 | . 2 1 2 . Record 1 | . . . 1 . Robot Analysis 2 | . 2 . . . Open Door 1 | . . 1 . . Proto ID Catalog 1 | . . . 1 . Fabricator Hacks . | . . . . . Repair Station Hacks . | . . . . . Recycling Unit Hacks 2 | . 2 . . . Retrieve Components 2 | . 2 . . . Scanalyzer . | . . . . . Garrison Access Hacks . | . . . . . Unauthorized Hacks 15 | . 15 . . . Terminals 13 | . 13 . . . Assimilate 1 | . 1 . . . Botnet 6 | . 6 . . . Skim 6 | . 6 . . . Fabricators . | . . . . . Repair Stations . | . . . . . Recycling Units 2 | . 2 . . . Tunnel 2 | . 2 . . . Scanalyzers . | . . . . . Garrison Access . | . . . . . Data Cores Recovered 2 | . 2 . . . Used 1 | . 1 . . . Hacking Detections 7 | . 7 . . . Full Trace Events 1 | . 1 . . . Feedback Events . | . . . . . Feedback Blocked . | . . . . . Robot Schematics Acquired . | . . . . . Robots Built . | . . . . . Authchips . | . . . . . Time . | . . . . . Total Robot Build Rating . | . . . . . Part Schematics Acquired . | . . . . . Parts Built . | . . . . . Authchips . | . . . . . Time . | . . . . . Total Part Build Rating . | . . . . . Part Studies Acquired . | . . . . . Parts Repaired . | . . . . . Time . | . . . . . Parts Recycled . | . . . . . Recycled Matter . | . . . . . Retrieved Matter . | . . . . . Retrieved Components 10 | . 10 . . . Parts Scanalyzed . | . . . . . Part Schematics Acquired . | . . . . . Parts Damaged . | . . . . . Bothacking | -11 -10 -10 -10 -9 ------------ Run | Yrd Mat Min Exi Min Used RIF Installer . | . . . . . Robots Hacked . | . . . . . Non-combat . | . . . . . Combat . | . . . . . Robot Hacks Applied . | . . . . . Relay Couplers Released . | . . . . . Fabnet Peak Effective % . | . . . . . Robots Rewired . | . . . . . Allies Hacked . | . . . . . Hacks Repelled . | . . . . . Allies | -11 -10 -10 -10 -9 -------- Run | Yrd Mat Min Exi Min Total Allies 4 | . 1 3 . . Largest Group 3 | . 1 3 2 2 Highest-Rated Group 40 | . 10 40 32 32 Highest-Rated Ally 16 | . 10 16 16 16 Total Orders 9 | . 6 3 . . STAY 5 | . 3 2 . . FOLLOW 4 | . 3 1 . . Ally Attacks 29 | . . 11 . 18 Total Damage 343 | . . 102 . 241 Kills 8 | . . 3 . 5 Allies Corrupted 1 | . . . . 1 Allies Melted . | . . . . . Intel | -11 -10 -10 -10 -9 ------- Run | Yrd Mat Min Exi Min Active Infowar (turns) 2969 | 38 1376 568 301 686 Seismic 2969 | 38 1376 568 301 686 Robot Analysis Total 2 | . 2 . . . Derelict Logs Recovered 5 | . . 3 . 2 Drone Launches . | . . . . . Drone Recoveries . | . . . . . Exploration | -11 -10 -10 -10 -9 ------------- Run | Yrd Mat Min Exi Min Turns Passed 3514 | 121 1376 1030 301 686 Spaces Moved 2087 | 81 762 609 214 421 Core 4 | 4 . . . . Treads 7 | 4 . 3 . . Legs . | . . . . . Wheels 2076 | 73 762 606 214 421 Hover . | . . . . . Flight . | . . . . . Fastest Speed 50 | 50 95 140 140 140 Average Speed 140 | 92 144 140 140 140 Slowest Speed 330 | 160 155 330 140 140 Overloaded Moves . | . . . . . Propulsion Burnouts . | . . . . . Robots Hopped . | . . . . . Potential Cave-ins . | . . . . . Cave-ins Triggered . | . . . . . Exploration Rate (%) 68 | 4 97 95 60 85 Regions Visited 4 Branch Regions 3 Pre-discovered Areas 4 | . 2 1 1 . Known Exits Taken . | . . . . . Unknown Exits Taken 4 | 1 1 1 1 . Scrap Searched 3 | . . 1 . 2 Spaces Dug 7 | . 7 . . . Terrain Destroyed 89 | . 48 . . 41 Melee . | . . . . . Projectile . | . . . . . AOE 89 | . 48 . . 41 Terrain Rammed . | . . . . . Walls Destroyed . | . . . . . Machines Disabled . | . . . . . Actions | -11 -10 -10 -10 -9 --------- Run | Yrd Mat Min Exi Min Total 2441 | 103 902 725 216 495 Wait 164 | . 41 72 1 50 Move 2083 | 80 761 608 213 421 Hop . | . . . . . Pick Up 27 | 5 12 6 1 3 Fast Attach 11 | 7 2 2 . . Attach 3 | . 2 1 . . Detach 1 | . 1 . . . Swap 12 | . 9 1 . 2 Drop 11 | . 3 3 1 4 Fire 129 | 11 71 32 . 15 Melee . | . . . . . Ram . | . . . . . Kick . | . . . . . Crush . | . . . . . Escape Stasis . | . . . . . Rewire . | . . . . . Trap . | . . . . . Miscellaneous . | . . . . . Route ------- -11/Scrapyard -10/Materials (discovered 4 exits: *Mat x3 / *Min) -10/Mines (discovered 3 exits: *Mat x2 / *Exi) -10/Exiles -9/Mines (discovered 2 exits: [*Mat x2]) History --------- Turn | Location | Event 7 | -11/Scrapyard | Discovered new exit (range 13) 122 | -11/Scrapyard | Entered Materials 237 | -10/Materials | Discovered new exit (range 16) 317 | -10/Materials | Build established: Mutant 415 | -10/Materials | Identified exit to Materials 461 | -10/Materials | Learned location of 1 exit from Recycling 519 | -10/Materials | Discovered new exit (range 15) 520 | -10/Materials | Learned Storage trap positions 533 | -10/Materials | Learned 2 Storage zone layouts 536 | -10/Materials | Loaded intel: 16 trap records 569 | -10/Materials | Learned location of 2 exits from Subcaves 1141 | -10/Materials | Core integrity fell below 50% 1498 | -10/Materials | Entered Mines 1535 | -10/Mines | A weapon hastily lodged in a ceiling crevice suddenly fell to the ground 1543 | -10/Mines | Learned Materials emergency access door positions 1705 | -10/Mines | Lost 3 parts (1p1n1u) 1802 | -10/Mines | Learned location of Storage (-7) 1902 | -10/Mines | YI-UF0 nonchalantly dropped a Grenade Launcher on the ground 1963 | -10/Mines | Discovered exit to Materials (range 10) 2223 | -10/Mines | Assisted by bots powering up and referring to "LRC-V3" 2287 | -10/Mines | Discovered exit to Materials (range 12) 2314 | -10/Mines | Learned Materials emergency access door positions 2331 | -10/Mines | Met a Derelict shopkeep closing up shop 2521 | -10/Mines | Deemed a non-threat by the Exiles lab entrance 2521 | -10/Mines | Discovered new exit (range 5) 2528 | -10/Mines | Entered Exiles 2528 | -10/Exiles | Accompanied by 2 allies 2563 | -10/Exiles | Met 8R-AWN 2586 | -10/Exiles | Met EX-HEX 2624 | -10/Exiles | Met EX-BIN 2645 | -10/Exiles | Aligned with FarCom system 2646 | -10/Exiles | Given EX-Vault access code 2684 | -10/Exiles | Opened EX-Vault 2694 | -10/Exiles | Found Chronowheel 2723 | -10/Exiles | Warned to stay clear of 0b10 Research branches 2765 | -10/Exiles | Met EX-DEC 2771 | -10/Exiles | Learned location of Zion (-6) 2817 | -10/Exiles | Discovered new exit (range 10) 2829 | -10/Exiles | Left Exiles lab with Chronowheel 2829 | -10/Exiles | Entered Mines 2829 | -9/Mines | Accompanied by 2 allies 2905 | -9/Mines | Discovered new exit (range 6) 2992 | -9/Mines | Discovered new exit (range 10) 3186 | -9/Mines | Received a Rocket Launcher from a helpful Derelict 3479 | -9/Mines | Assembled infested the area 3484 | -9/Mines | Assisted by a Guerilla fighting off Assembled 3485 | -9/Mines | Learned Materials garrison access intel 3503 | -9/Mines | Core integrity fell below 20% 3515 | -9/Mines | Destroyed self with Improved Grenade Launcher Last Messages --------------- laser wimps, I say!" 03186_ 9I-CNQ(g): "Would you like a rocket launcher? I know I would if I were you, so I'm going to lend you mine." 03186_ 9I-CNQ(g) slips back into the shadows. 03193_ Dropped Grenade Launcher. 03193_ Acquired Rocket Launcher. 03253_ Searching scrap... 03253_ Found VTOL Module. 03253_ Found EM Shotgun. 03253_ Found 56 Matter. 03479_ ALERT: Infestation in the mines, dispatching Demolisher response squad. 03484_ A derelict emerges from the shadows: "You need to get out of here! I've been tracking a group of Assembled to figure out where they're coming from, and they're closing on this area, come on!" 03485_ Acquired derelict log, extracted data. Data stored: Materials garrison access intel. 03509_ as-81883 destroyed. 03512_ as-90406 destroyed. 03515_ as-96610 destroyed. Map ----- +----------------------------------------------------+ | ???????????## #???# #????# #???# | | ????????????# ##### ###### #???# | | ????????????## #???# | | ?????????????### ############# ##### | | ???????????????####???????????# | | ??????????????????????????????####### | | ????????????????????????????????##### | | ????????????????????????????????# | | ????????????????????????????????# | | ????????????????????????????????# | | ??????????????????? ???????????# | | ??????????????????? #??????????# """ | | ??????????????????? #?????????## """ | | ??????????????????# #?????????# """ | | ??????????????????# #?????????# | | ??????????????????# #?????????# | | ??????????????????# ###??????## | | ??????????????????# ##????## | | ??????????????????# #????# | | ??????????????????# #????# | | ?????????????????## #?????# | | ?????###?####????# #??????## | | ?????# # ???## #????????## ## | | ?????# #### ####??????###?# | | ?????# ## ######????## | | ?????# aa @ ## ###### | | ?????# a% # | | ?????# a ?## | | ?????# a## ???#### ##### | | ?????## ## ??????## ##???## | | ???????# ????????## ###?????## | | ???????# ##?????????#### #????????? | | ???????# #?????????????## #???##??## | | ???????# #??????????????# #??# ?? | | ??????? #?????????????? #?# """ | | ???????# ?????????????? #?# """ | | ???????? ????????????? #?# """ | | ???????? ???????????? #?# | | ???????? ???????????? ### #?# """ | | ???????? ????????????? #??? ?# """* | | ???????? ?????????????? ???? ??# """% | | ????????"??????????????????? ???# = | | ????????????????????????????????# =% | | ????????????????????????????????# %=%* | | ????????????????????????????????# * | | ????????????????????????????????# | | ????????????????????????????????# | | ????????????????????????????????# | | ????????????????????????????????###### | | ?????????????????????????????????????? | +----------------------------------------------------+ Best States ------------- Heat Dissipation 25 Energy Generation 14 Energy Capacity 160 Matter Stores 300 Matter Capacity 300 Sight Range 16 Terrain Scan Density 10 Evasion (%) 44 Recoil Reduction 1 Item Schematics ----------------- None Robot Schematics ------------------ None Fabricated ------------ Nothing Repaired ---------- Nothing Studied --------- None Alien Tech Used ----------------- None Achievements -------------- None Challenges ------------ None Game ------ Seed BattleBiometalRedistributor Manual? 0 Play Time 00:18:55 Cumulative 329.2 hours Start 2026.03.06 @ 13:09:31 End 2026.03.06 @ 13:29:18 Sessions 1 Manual Loads 0 Difficulty Rogue Special Mode None Game No. 265 Rogue 265 Adventurer 0 Explorer 0 Win Type - Total 19 Types 10/0/7/2/0/0/0/0/0/0 Lore% 85 Gallery% 76 Achievement% 64 Wizard Run 0 Options --------- Layout 1 ASCII 0 Keyboard 0 Movement Numpad Keybinds 0 Fullscreen 1 Font 32/SmallcapsGlow Map View 77x35 Zoom Use 0% Tactical HUD 1 Map Filters NONE Filters NONE Steam 1 RUN: bd055a34-aa47-44e5-801f-089ad4734770